bitfinex/quotes_SOLUSD_20260222
["timestamp","ask_amount","ask_price","bid_price","bid_amount"]
[1771765118961,0.49374097,84.536,84.486,0.76871868]
[1771765119161,0.49374097,84.536,84.487,0.48439554]
[1771765120868,0.49374097,84.534,84.488,11.83600037]
[1771765121554,0.49374097,84.534,84.488,12.32039591]
[1771765122461,0.49374097,84.532,84.488,12.32039591]
[1771765124271,0.49374097,84.53,84.48,11.83700264]
[1771765124465,0.49374097,84.53,84.48,12.32139818]
[1771765125056,0.49374097,84.53,84.481,0.48439554]
[1771765128873,0.49374097,84.528,84.482,12.32123652]
[1771765129166,0.49374097,84.528,84.483,0.48439554]
[1771765130673,0.49374097,84.526,84.483,0.48439554]
[1771765131563,0.49374097,84.526,84.485,0.48439554]
[1771765134277,0.49374097,84.524,84.485,0.48439554]
[1771765139676,0.49374097,84.522,84.479,11.83714459]
[1771765139878,0.49374097,84.522,84.476,0.48439554]
[1771765140260,0.49374097,84.522,84.478,0.48439554]
[1771765141579,0.49374097,84.52,84.48,0.48439554]
[1771765143767,41.40982713,84.521,84.482,0.48439554]
[1771765143768,0.49374097,84.518,84.482,0.48439554]
[1771765148076,11.83193913,84.517,84.484,0.45241113]
[1771765148284,0.45291743,84.53,84.488,0.45241113]
[1771765149977,0.45291743,84.53,84.488,0.45241113]
[1771765155287,0.47324729,84.528,84.49,0.47607447]
[1771765156887,0.47324729,84.528,84.485,0.47607447]
[1771765157285,0.47324729,84.526,84.485,0.47607447]
[1771765159869,0.47324729,84.524,84.485,0.47607447]
[1771765160084,0.47324729,84.524,84.48,0.47607447]
[1771765162289,0.47324729,84.522,84.475,0.47607447]
[1771765162768,0.47324729,84.521,84.475,0.47607447]
[1771765163875,102.7,84.522,84.477,0.47607447]
[1771765163876,0.47324729,84.519,84.477,0.47607447]
[1771765165302,0.47324729,84.517,84.477,0.47607447]
[1771765166892,41.41227696,84.516,84.477,0.47607447]
[1771765167100,0.47324729,84.515,84.477,0.47607447]
[1771765169107,0.47324729,84.513,84.477,0.47607447]
[1771765170905,11.83263915,84.512,84.477,0.47607447]
[1771765171108,0.47324729,84.511,84.477,0.47607447]
[1771765172306,0.47324729,84.509,84.477,0.47607447]
[1771765178598,11.83319922,84.508,84.477,0.47607447]
[1771765178802,0.45911477,84.507,84.477,0.47607447]
[1771765179803,0.45911477,84.507,84.478,11.83740145]
[1771765180013,0.45911477,84.507,84.479,0.46574085]
[1771765181512,0.45911477,84.507,84.48,11.83712121]
[1771765181829,0.45911477,84.507,84.481,0.46574085]
[1771765184102,102.7,84.522,84.448,61.4]
[1771765184103,0.45911477,84.521,84.483,0.46574085]
[1771765186619,0.45911477,84.519,84.485,0.46574085]
[1771765190316,0.45911477,84.517,84.487,0.46574085]
[1771765193024,0.45911477,84.515,84.488,11.83600037]
[1771765193206,0.45911477,84.515,84.488,12.30174122]
[1771765194329,0.45911477,84.515,84.475,0.46574085]
[1771765198017,0.45911477,84.513,84.477,0.46574085]
[1771765198708,0.45911477,84.513,84.444,3.69383402]
[1771765198709,0.45911477,84.513,84.45,0.46574085]
[1771765199012,0.45911477,84.511,84.45,0.46574085]
[1771765199426,0.45911477,84.511,84.452,0.46574085]
[1771765199613,0.45911477,84.511,84.458,0.46574085]
[1771765199814,0.45911477,84.509,84.458,0.46574085]
[1771765200229,0.45911477,84.507,84.463,0.28432314]
[1771765200530,0.45911477,84.507,84.468,0.46574085]
[1771765201136,0.45911477,84.522,84.482,0.46574085]
[1771765201428,0.45911477,84.522,84.488,0.46574085]
[1771765202410,0.45911477,84.522,84.49,0.46574085]
[1771765203417,0.45911477,84.521,84.49,0.46574085]
[1771765204935,0.45911477,84.521,84.491,11.83558012]
[1771765205130,0.45911477,84.521,84.492,0.46574085]
[1771765207534,0.45911477,84.521,84.494,0.46574085]
[1771765207933,0.45911477,84.521,84.495,0.28432314]
[1771765208234,0.45911477,84.521,84.498,0.45639042]
[1771765209033,0.45911477,84.521,84.49,0.45639042]
[1771765209239,0.4526628,84.519,84.49,0.45639042]
[1771765210740,0.4526628,84.517,84.478,0.45639042]
[1771765214544,0.47566005,84.515,84.48,0.49798894]
[1771765216166,0.47566005,84.515,84.481,0.28432314]
[1771765216448,0.47566005,84.515,84.454,3.69383402]
[1771765216449,12.30507981,84.535,84.488,0.49798894]
[1771765216629,12.30507981,84.535,84.498,0.49798894]
[1771765216946,0.47566005,84.539,84.504,0.49798894]
[1771765217250,0.47566005,84.539,84.508,0.49798894]
[1771765218530,0.47566005,84.539,84.51,0.49798894]
[1771765222647,0.47566005,84.539,84.512,0.49798894]
[1771765225050,0.2,84.54,84.518,0.49798894]
[1771765226135,0.47566005,84.539,84.52,0.49798894]
[1771765227556,0.47566005,84.539,84.521,11.83137918]
[1771765229855,0.47566005,84.539,84.516,0.49798894]
[1771765230062,0.47566005,84.539,84.515,11.83219222]
[1771765231247,0.2,84.54,84.518,0.49798894]
[1771765232575,0.2,84.54,84.52,0.49798894]
[1771765233373,0.47566005,84.539,84.514,11.83223431]
[1771765234153,0.47566005,84.539,84.509,0.49798894]
[1771765234470,0.47566005,84.539,84.509,12.33102624]
[1771765234780,0.47566005,84.537,84.51,0.49798894]
[1771765236476,0.47566005,84.535,84.51,0.49798894]
[1771765236856,0.47566005,84.535,84.505,12.33156766]
[1771765237481,0.47566005,84.535,84.506,0.49798894]
[1771765240067,11.8295597,84.534,84.506,0.49798894]
[1771765240365,0.49908371,84.533,84.506,0.49798894]
[1771765243185,0.49908371,84.531,84.506,0.49798894]
[1771765246171,0.49908371,84.529,84.506,0.49798894]
[1771765246364,0.49908371,84.533,84.508,0.46683134]
[1771765248772,0.49908371,84.533,84.51,0.46683134]
[1771765251676,0.49908371,84.533,84.512,0.46683134]
[1771765256471,0.49908371,84.533,84.514,0.46683134]
[1771765257783,0.49908371,84.533,84.516,0.46683134]
[1771765258282,0.49908371,84.539,84.516,0.46683134]
[1771765260360,0.49908371,84.539,84.518,0.46683134]
[1771765261499,0.49908371,84.544,84.519,0.46683134]
[1771765261665,0.49908371,84.554,84.527,0.46683134]
[1771765262988,0.49908371,84.554,84.528,12.29723073]
[1771765263170,0.49908371,84.553,84.528,12.29723073]
[1771765264076,0.49908371,84.552,84.522,0.46683134]
[1771765265488,0.49908371,84.55,84.522,0.46683134]
[1771765266189,0.49908371,84.55,84.513,0.46683134]
[1771765268590,11.82746099,84.549,84.513,0.46683134]
[1771765268788,0.47049966,84.548,84.513,0.46683134]
[1771765271687,11.82774078,84.547,84.513,0.46683134]
[1771765271907,0.47049966,84.546,84.513,0.46683134]
[1771765272806,0.47049966,84.544,84.513,0.46683134]
[1771765274894,11.82830039,84.543,84.513,0.46683134]
[1771765275102,0.49882252,84.542,84.513,0.46683134]
[1771765275890,0.49882252,84.542,84.515,0.48677063]
[1771765278995,11.82858021,84.541,84.515,0.48677063]
[1771765279188,0.49882252,84.54,84.515,0.48677063]
[1771765279414,0.49882252,84.546,84.517,0.48677063]
[1771765280481,0.49882252,84.544,84.519,0.48677063]
[1771765282195,0.49882252,84.544,84.521,0.48677063]
[1771765283896,0.49882252,84.549,84.521,0.48677063]
[1771765284092,0.49882252,84.549,84.523,0.48677063]
[1771765285302,0.49882252,84.547,84.523,0.48677063]
[1771765285681,0.49882252,84.547,84.525,0.48677063]
[1771765286923,0.49882252,84.547,84.527,0.48677063]
[1771765287388,0.49882252,84.547,84.529,0.48677063]
[1771765287577,0.49882252,84.558,84.529,0.48677063]
[1771765289195,0.49882252,84.558,84.52,29.57858844]
[1771765289196,0.49882252,84.556,84.531,0.48677063]
[1771765291500,0.49882252,84.556,84.532,11.82983958]
[1771765291674,0.49882252,84.556,84.533,0.48677063]
[1771765292503,0.49882252,84.554,84.533,0.48677063]
[1771765294799,0.49882252,84.554,84.528,0.48677063]
[1771765295001,0.49882252,84.552,84.514,0.48677063]
[1771765296108,11.82718122,84.551,84.514,0.48677063]
[1771765296313,0.49882252,84.55,84.514,0.48677063]
[1771765297606,11.82746099,84.549,84.514,0.48677063]
[1771765297907,0.49882252,84.548,84.514,0.48677063]
[1771765299607,0.4547729,84.546,84.514,0.48677063]
[1771765301603,0.4547729,84.544,84.509,0.45128093]
[1771765303816,0.4547729,84.542,84.511,0.45128093]
[1771765309914,11.82752761,84.549,84.517,0.45128093]
[1771765310114,0.4547729,84.548,84.517,0.45128093]
[1771765316122,0.4547729,84.548,84.519,0.45128093]
[1771765321124,0.4547729,84.548,84.521,0.45128093]
[1771765325728,0.4547729,84.548,84.523,0.45128093]
[1771765328036,0.4547729,84.548,84.525,0.45128093]
[1771765334815,0.4650628,84.546,84.503,0.28432314]
[1771765335035,0.4650628,84.546,84.498,11.83459963]
[1771765335841,0.4650628,84.537,84.498,11.83459963]
[1771765337138,0.4650628,84.535,84.498,11.83459963]
[1771765337439,0.4650628,84.535,84.498,12.30181167]
[1771765338643,0.4650628,84.533,84.499,0.46721204]
[1771765340935,0.4650628,84.533,84.501,0.46721204]
[1771765341535,11.82983958,84.532,84.501,0.46721204]
[1771765341842,0.4650628,84.531,84.501,0.46721204]
[1771765343141,0.4650628,84.529,84.503,0.46721204]
[1771765347546,0.4650628,84.529,84.497,0.46721204]
[1771765347737,0.4650628,84.527,84.497,0.46721204]
[1771765350853,0.4650628,84.525,84.459,0.46721204]
[1771765351151,0.4650628,84.525,84.467,0.46721204]
[1771765351338,0.4650628,84.519,84.467,0.46721204]
[1771765352353,0.4650628,84.517,84.469,0.46721204]
[1771765355850,0.4650628,84.515,84.473,0.46721204]
[1771765356056,0.4650628,84.515,84.477,0.46721204]
[1771765366068,0.48475337,84.513,84.479,0.49130714]
[1771765368178,0.48475337,84.517,84.484,0.28432314]
[1771765368468,0.48475337,84.517,84.487,0.49130714]
[1771765369974,0.48475337,84.536,84.487,0.49130714]
[1771765370557,0.48475337,84.534,84.489,0.49130714]
[1771765373791,0.48475337,84.532,84.491,0.49130714]
[1771765373954,0.48475337,84.532,84.497,0.49130714]
[1771765377002,0.48475337,84.532,84.499,0.49130714]
[1771765380769,0.48475337,84.532,84.501,0.49130714]
[1771765381594,0.48475337,84.53,84.5,11.83431952]
[1771765384893,0.48475337,84.53,84.501,0.49130714]
[1771765389806,29.56632992,84.556,84.513,0.4720893]
[1771765390021,29.56632992,84.556,84.517,0.4720893]
[1771765390699,29.56632992,84.556,84.493,0.28432314]
[1771765390898,29.56632992,84.556,84.492,100.60124034]
[1771765390899,29.56632992,84.556,84.501,0.28432314]
[1771765391080,29.56632992,84.556,84.508,0.4720893]
[1771765391802,0.4992358,84.553,84.475,0.4720893]
[1771765391984,0.4992358,84.553,84.494,0.28432314]
[1771765392191,0.4992358,84.553,84.497,0.4720893]
[1771765393601,0.46875838,84.551,84.497,0.4720893]
[1771765393790,0.46875838,84.551,84.499,0.47575827]
[1771765395800,0.46875838,84.551,84.498,11.83459963]
[1771765395801,0.46875838,84.549,84.501,0.47575827]
[1771765397090,0.46875838,84.549,84.5,11.83431952]
[1771765397091,0.46875838,84.549,84.507,0.47575827]
[1771765401215,0.46875838,84.547,84.509,0.47575827]
[1771765407039,0.46875838,84.545,84.511,0.47575827]
[1771765412905,0.46875838,84.543,84.513,0.47575827]
[1771765416345,59.12761797,84.563,84.506,0.14216157]
[1771765416346,1e-08,84.56,84.516,0.14216157]
[1771765416624,1e-08,84.57,84.539,0.47575827]
[1771765416806,1e-08,84.57,84.547,0.47575827]
[1771765417012,0.46875838,84.589,84.567,0.47575827]
[1771765417224,0.2,84.6,84.567,0.47575827]
[1771765417436,11.82074289,84.598,84.567,0.47575827]
[1771765418118,0.47812241,84.595,84.567,0.47575827]
[1771765419030,0.47812241,84.589,84.569,0.49886968]
[1771765420507,12.2999905,84.589,84.569,0.49886968]
[1771765422306,0.47812241,84.594,84.569,0.49886968]
[1771765422628,11.82163349,84.591,84.569,0.49886968]
[1771765424120,0.47812241,84.594,84.569,0.49886968]
[1771765424328,11.82151037,84.592,84.569,0.49886968]
[1771765425327,0.2,84.6,84.569,0.49886968]
[1771765425328,0.2,84.6,84.57,0.49886968]
[1771765425719,0.47812241,84.592,84.57,0.49886968]
[1771765427508,0.47812241,84.592,84.572,0.49886968]
[1771765428320,12.2991091,84.596,84.572,0.49886968]
[1771765428713,0.50006631,84.627,84.545,3.69383402]
[1771765428920,0.50006631,84.619,84.558,0.28432314]
[1771765429727,0.50006631,84.618,84.543,0.28432314]
[1771765429918,11.81704821,84.624,84.555,0.28432314]
[1771765430115,0.50006631,84.626,84.555,0.28432314]
[1771765430342,0.50006631,84.626,84.559,5.64518502]
[1771765430637,0.2,84.64,84.579,5.64518502]
[1771765430817,47.21859277,84.713,84.579,5.64518502]
[1771765430818,0.50006631,84.652,84.588,5.64518502]
[1771765431018,0.50006631,84.649,84.588,0.28432314]
[1771765431737,0.50006631,84.648,84.588,0.28432314]
[1771765434017,0.50006631,84.648,84.593,0.28432314]
[1771765434323,0.50006631,84.646,84.593,0.28432314]
[1771765436446,0.50006631,84.644,84.595,0.28432314]
[1771765438845,0.50006631,84.644,84.597,0.28432314]
[1771765440617,11.81460521,84.641,84.598,11.82061041]
[1771765440820,0.50006631,84.64,84.598,11.82061041]
[1771765445042,0.50006631,84.638,84.597,0.14216157]
[1771765446521,0.50006631,84.636,84.583,0.28432314]
[1771765449643,0.50006631,84.636,84.585,0.28432314]
[1771765450829,0.50006631,84.634,84.584,41.37898419]
[1771765451240,0.50006631,84.634,84.585,0.28432314]
[1771765451926,0.50006631,84.632,84.568,3.69383402]
[1771765453750,0.50006631,84.63,84.573,0.28432314]
[1771765456547,0.50006631,84.628,84.575,0.28432314]
[1771765459353,0.50006631,84.626,84.577,0.28432314]
[1771765461339,0.50006631,84.624,84.553,59.13449455]
[1771765461541,0.50006631,84.624,84.554,0.28432314]
[1771765461939,0.50006631,84.624,84.553,59.13449455]
[1771765462542,0.50006631,84.622,84.554,0.28432314]
[1771765465656,0.50006631,84.62,84.556,0.28432314]
[1771765466656,0.50006631,84.618,84.558,0.28432314]
[1771765468059,0.50006631,84.618,84.561,0.28432314]
[1771765468950,0.50006631,84.616,84.563,0.28432314]
[1771765471448,0.50006631,84.616,84.565,0.28432314]
[1771765471870,0.50006631,84.614,84.565,0.28432314]
[1771765478574,0.50006631,84.614,84.567,0.28432314]
[1771765482057,0.50006631,84.614,84.569,0.28432314]
[1771765482661,29.53720171,84.64,84.572,0.49209774]
[1771765482861,29.53720171,84.64,84.588,0.49209774]
[1771765484670,0.45780702,84.637,84.589,12.31396583]
[1771765486481,0.45780702,84.637,84.583,11.82264658]
[1771765486685,59.07046056,84.645,84.573,29.56012905]
[1771765486686,0.45780702,84.635,84.574,0.28432314]
[1771765487290,0.45780702,84.635,84.576,0.28432314]
[1771765487588,0.45780702,84.635,84.576,0.77642088]
[1771765488090,0.45780702,84.635,84.451,39.38821181]
[1771765488091,0.45780702,84.629,84.577,11.8235454]
[1771765488760,0.45780702,84.629,84.578,0.49209774]
[1771765490479,41.35747033,84.628,84.579,11.82326582]
[1771765490687,0.45780702,84.627,84.58,0.49209774]
[1771765493088,0.45780702,84.625,84.582,0.49209774]
[1771765496893,0.45780702,84.623,84.584,0.49209774]
[1771765497991,0.45780702,84.623,84.577,29.55886352]
[1771765497992,0.45780702,84.621,84.586,0.49209774]
[1771765499290,0.45780702,84.621,84.588,0.49209774]
[1771765499998,0.45780702,84.621,84.59,0.49209774]
[1771765501494,102.7,84.644,84.584,11.82255409]
[1771765501495,0.45780702,84.619,84.584,11.82255409]
[1771765501995,0.45780702,84.619,84.579,11.82324485]
[1771765502196,0.45780702,84.617,84.579,11.82324485]
[1771765502492,0.45780702,84.617,84.576,11.8236852]
[1771765502703,0.28432314,84.61,84.553,0.49209774]
[1771765502871,0.45780702,84.609,84.553,0.49209774]
[1771765503709,0.28432314,84.606,84.546,0.49209774]
[1771765503872,0.28432314,84.59,84.531,41.40492836]
[1771765504194,0.45780702,84.589,84.531,41.40492836]
[1771765504603,0.45780702,84.589,84.531,41.8970261]
[1771765504777,0.45780702,84.583,84.526,11.83067931]
[1771765505096,0.45780702,84.579,84.526,11.83067931]
[1771765506290,0.45780702,84.577,84.526,11.83067931]
[1771765506594,0.45780702,84.577,84.527,0.49209774]
[1771765508973,0.28432314,84.587,84.528,11.83039939]
[1771765508974,0.49606523,84.575,84.528,11.83039939]
[1771765509173,0.49606523,84.575,84.528,12.28973335]
[1771765511389,0.49606523,84.573,84.529,0.45933396]
[1771765512293,0.49606523,84.573,84.528,11.83039939]
[1771765512495,0.49606523,84.573,84.524,37.30072682]
[1771765512795,0.49606523,84.573,84.525,0.45933396]
[1771765516774,0.47504532,84.571,84.527,0.48205559]
[1771765517092,3.69383402,84.588,84.526,11.83067931]
[1771765517093,0.47504532,84.587,84.531,0.48205559]
[1771765517296,0.47504532,84.587,84.536,0.28432314]
[1771765517678,0.47504532,84.587,84.536,0.48205559]
[1771765518902,0.47504532,84.585,84.537,11.8291399]
[1771765520691,0.47504532,84.583,84.537,0.48205559]
[1771765526298,0.47504532,84.579,84.525,0.48205559]
[1771765527491,0.47504532,84.577,84.526,0.48205559]
[1771765532896,0.47504532,84.575,84.528,0.48205559]
[1771765535018,0.47504532,84.573,84.53,0.48205559]
[1771765538512,0.48913036,84.571,84.532,0.48710223]
[1771765541006,0.48913036,84.569,84.532,0.48710223]
[1771765541215,0.48913036,84.569,84.527,0.48710223]
[1771765541803,0.48913036,84.569,84.525,0.48710223]
[1771765547721,0.48913036,84.567,84.525,0.48710223]
[1771765549109,0.28432314,84.553,84.496,0.48710223]
[1771765549319,0.48913036,84.542,84.496,0.48710223]
[1771765549507,0.48913036,84.538,84.496,0.48710223]
[1771765551523,0.48913036,84.536,84.496,0.48710223]
[1771765553821,0.48913036,84.534,84.496,0.48710223]
[1771765554006,0.48913036,84.532,84.49,0.1]
[1771765554322,0.48913036,84.528,84.49,0.1]
[1771765556522,0.48913036,84.526,84.49,0.1]
[1771765558418,0.48913036,84.524,84.49,0.1]
[1771765558622,0.48913036,84.524,84.49,0.58710223]
[1771765560025,0.48913036,84.524,84.49,0.1]
[1771765560924,0.48913036,84.518,84.49,0.1]
[1771765561311,0.28432314,84.501,84.455,0.48710223]
[1771765561622,0.48913036,84.498,84.455,0.48710223]
[1771765561827,0.48913036,84.498,84.446,0.48710223]
[1771765562523,0.28432314,84.493,84.446,0.48710223]
[1771765562722,0.48913036,84.488,84.446,0.48710223]
[1771765563113,0.48913036,84.486,84.446,0.48710223]
[1771765563318,0.48913036,84.486,84.441,0.48710223]
[1771765565129,0.48913036,84.484,84.441,0.48710223]
[1771765566028,41.42747232,84.485,84.44,0.1]
[1771765566029,0.48913036,84.478,84.44,0.1]
[1771765566331,0.48913036,84.468,84.44,0.1]
[1771765566831,0.48913036,84.458,84.43,0.1]
[1771765567127,0.48913036,84.456,84.43,0.1]
[1771765567426,0.48913036,84.456,84.372,59.2612665]
[1771765567427,0.48913036,84.456,84.411,0.48710223]
[1771765567618,41.44120676,84.457,84.406,0.48710223]
[1771765567619,0.28432314,84.453,84.406,0.48710223]
[1771765567821,0.28432314,84.445,84.401,0.48710223]
[1771765568019,0.48913036,84.438,84.401,0.48710223]
[1771765568532,0.48913036,84.438,84.406,0.46498857]
[1771765569133,0.47286429,84.436,84.406,0.46498857]
[1771765569944,41.45102265,84.437,84.412,0.46498857]
[1771765569945,11.54314933,84.437,84.412,0.46498857]
[1771765570735,0.47286429,84.468,84.412,0.46498857]
[1771765570937,0.47286429,84.465,84.412,0.46498857]
[1771765572910,41.43777229,84.464,84.413,11.84651653]
[1771765573130,41.43777229,84.464,84.414,0.46498857]
[1771765573131,0.47286429,84.46,84.414,0.46498857]
[1771765574010,0.46416057,84.474,84.418,0.49803285]
[1771765574210,0.46416057,84.484,84.425,0.28432314]
[1771765574537,3.69383402,84.482,84.428,0.49803285]
[1771765574735,0.46416057,84.481,84.428,0.49803285]
[1771765574929,41.42992424,84.48,84.429,11.84427151]
[1771765575138,0.46416057,84.479,84.43,0.49803285]
[1771765579834,0.46416057,84.477,84.432,0.49803285]
[1771765585731,0.46416057,84.475,84.434,0.49803285]
[1771765588242,0.46416057,84.473,84.436,0.49803285]
[1771765590560,0.46416057,84.479,84.438,0.49803285]
[1771765593344,0.46416057,84.477,84.44,0.49803285]
[1771765595644,0.46416057,84.486,84.442,0.49803285]
[1771765598553,0.48005201,84.484,84.444,0.48215482]
[1771765601358,0.48005201,84.482,84.446,0.48215482]
[1771765607461,29.59035117,84.487,84.448,0.48215482]
[1771765607462,0.48005201,84.48,84.448,0.48215482]
[1771765609072,12.31731334,84.479,84.45,0.48215482]
[1771765609565,11.83726133,84.479,84.45,0.48215482]
[1771765609873,0.48005201,84.478,84.45,0.48215482]
[1771765611169,11.83754157,84.477,84.451,11.84118601]
[1771765611349,12.31759358,84.477,84.452,0.48215482]
[1771765611867,0.48005201,84.476,84.452,0.48215482]
[1771765613576,0.48005201,84.476,84.453,11.84090559]
[1771765613767,0.48005201,84.476,84.454,0.48215482]
[1771765616079,0.48005201,84.489,84.456,0.48215482]
[1771765616281,0.48005201,84.489,84.458,0.48215482]
[1771765618466,0.48005201,84.489,84.459,11.8400644]
[1771765618663,0.48005201,84.489,84.46,0.48215482]
[1771765619485,0.48005201,84.489,84.461,11.83978404]
[1771765619683,0.48005201,84.496,84.462,0.48215482]
[1771765620784,0.48005201,84.496,84.463,11.83950368]
[1771765620964,0.48005201,84.496,84.464,0.48215482]
[1771765621472,0.48005201,84.494,84.464,0.48215482]
[1771765622387,0.48005201,84.512,84.468,0.48215482]
[1771765623084,0.48005201,84.51,84.47,0.48215482]
[1771765625790,0.48005201,84.498,84.432,0.48215482]
[1771765626284,0.48005201,84.498,84.437,0.28432314]
[1771765626491,0.48005201,84.498,84.438,0.48215482]
[1771765626875,0.48005201,84.496,84.44,0.48215482]
[1771765628789,0.47038566,84.488,84.435,0.49191683]
[1771765628979,0.47038566,84.486,84.435,0.49191683]
[1771765629180,0.47038566,84.486,84.436,11.84328959]
[1771765629392,0.47038566,84.486,84.436,12.33520642]
[1771765629574,0.47038566,84.486,84.436,11.84328959]
[1771765629779,0.47038566,84.486,84.437,0.49191683]
[1771765630486,0.47038566,84.484,84.438,12.3349259]
[1771765630793,0.47038566,84.478,84.438,0.49191683]
[1771765631903,0.47038566,84.478,84.428,0.49191683]
[1771765632778,0.47038566,84.476,84.428,0.49191683]
[1771765633895,0.47477281,84.472,84.43,0.48934558]
[1771765635597,0.47477281,84.47,84.43,0.48934558]
[1771765638099,0.47477281,84.47,84.411,29.6166678]
[1771765638100,0.47477281,84.468,84.432,0.48934558]
[1771765640208,0.47477281,84.466,84.432,0.48934558]
[1771765641390,0.47477281,84.464,84.432,0.48934558]
[1771765646407,11.83950368,84.463,84.432,0.48934558]
[1771765646599,0.47477281,84.462,84.432,0.48934558]
[1771765647601,0.47477281,84.46,84.432,0.48934558]
[1771765648605,11.8400644,84.459,84.432,0.48934558]
[1771765648812,0.47477281,84.458,84.432,0.48934558]
[1771765650409,0.47477281,84.456,84.432,0.48934558]
[1771765653514,12.31539799,84.455,84.432,0.48934558]
[1771765656400,0.47477281,84.454,84.432,0.48934558]
[1771765657806,0.47477281,84.452,84.427,0.48934558]
[1771765659217,0.47477281,84.452,84.428,11.8444118]
[1771765659418,0.47477281,84.452,84.429,0.49862066]
[1771765661818,0.47477281,84.452,84.43,11.84413123]
[1771765662116,0.47477281,84.452,84.431,0.49862066]
[1771765667816,0.48408578,84.45,84.431,0.49862066]
[1771765668215,0.48408578,84.448,84.4,0.1]
[1771765668405,0.48408578,84.439,84.4,0.1]
[1771765669027,0.48408578,84.429,84.4,0.1]
[1771765669922,0.48408578,84.427,84.4,0.1]
[1771765670122,0.48408578,84.427,84.368,0.49862066]
[1771765670432,0.48408578,84.427,84.372,0.49862066]
[1771765670727,0.48408578,84.427,84.376,0.49862066]
[1771765671230,0.48408578,84.424,84.376,0.49862066]
[1771765671614,0.48408578,84.424,84.38,0.59862066]
[1771765673331,0.48408578,84.422,84.38,0.59862066]
[1771765675533,0.48408578,84.42,84.38,0.59862066]
[1771765677338,0.48408578,84.42,84.382,0.49862066]
[1771765677834,0.48408578,84.418,84.384,0.49862066]
[1771765679436,0.48408578,84.416,84.384,0.49862066]
[1771765681241,0.48408578,84.414,84.384,0.49862066]
[1771765682642,0.48408578,84.414,84.38,0.59862066]
[1771765682848,0.48408578,84.414,84.38,0.43291266]
[1771765683226,0.48408578,84.414,84.381,11.85100911]
[1771765683543,29.61348479,84.421,84.365,0.28432314]
[1771765683544,0.48408578,84.412,84.365,0.28432314]
[1771765684141,0.48408578,84.412,84.315,53.34]
[1771765684142,0.48408578,84.41,84.32,0.1]
[1771765684322,0.48408578,84.399,84.319,2.11288044]
[1771765684527,0.48408578,84.389,84.319,2.11288044]
[1771765684830,0.48408578,84.389,84.32,0.49862066]
[1771765685036,0.48408578,84.38,84.32,0.49862066]
[1771765685239,0.48408578,84.368,84.32,0.49862066]
[1771765685740,0.48408578,84.366,84.32,0.49862066]
[1771765686324,0.48408578,84.358,84.32,0.49862066]
[1771765686636,0.48408578,84.358,84.321,0.49862066]
[1771765687823,0.48408578,84.356,84.321,0.49862066]
[1771765689644,0.49860452,84.354,84.321,0.49862066]
[1771765690446,0.49860452,84.354,84.298,29.65654269]
[1771765690447,0.49860452,84.354,84.3,0.46868045]
[1771765691142,0.49860452,84.348,84.3,0.46868045]
[1771765691342,0.49860452,84.338,84.3,0.46868045]
[1771765691543,0.49860452,84.336,84.295,0.46868045]
[1771765692049,0.49860452,84.322,84.259,0.46868045]
[1771765692232,3.69383402,84.334,84.259,0.46868045]
[1771765692233,0.49860452,84.308,84.259,0.46868045]
[1771765692426,0.49860452,84.298,84.259,0.46868045]
[1771765692641,0.49860452,84.298,84.219,59.36865313]
[1771765692642,0.49860452,84.288,84.183,0.46868045]
[1771765693247,0.49860452,84.306,84.197,5.36086188]
[1771765693446,0.49860452,84.306,84.182,100.97170414]
[1771765693447,0.49860452,84.306,84.233,0.46868045]
[1771765693635,0.49860452,84.304,84.241,0.46868045]
[1771765694446,0.47784541,84.302,84.241,0.46868045]
[1771765695649,0.47784541,84.302,84.237,40.9759226]
[1771765695650,0.47784541,84.3,84.243,0.49357014]
[1771765696152,0.47784541,84.292,84.243,0.49357014]
[1771765697549,0.47784541,84.33,84.245,0.49357014]
[1771765697749,0.47784541,84.325,84.251,0.49357014]
[1771765697936,0.47784541,84.319,84.251,0.49357014]
[1771765698139,0.47784541,84.313,84.251,0.49357014]
[1771765698339,0.47784541,84.313,84.253,0.49357014]
[1771765699637,0.47784541,84.311,84.255,0.49357014]
[1771765702456,0.47784541,84.309,84.257,0.49357014]
[1771765702663,0.47784541,84.303,84.257,0.49357014]
[1771765703445,11.86211477,84.302,84.258,11.86830924]
[1771765703744,0.47784541,84.301,84.259,0.49357014]
[1771765704363,0.47784541,84.312,84.263,0.49357014]
[1771765706565,0.47784541,84.312,84.265,0.49357014]
[1771765708649,0.47784541,84.312,84.267,0.49357014]
[1771765709852,0.47784541,84.312,84.269,0.49357014]
[1771765710045,0.47784541,84.31,84.269,0.49357014]
[1771765712379,0.47784541,84.308,84.271,0.49357014]
[1771765712675,11.86112989,84.309,84.256,0.49357014]
[1771765712676,0.47784541,84.302,84.256,0.49357014]
[1771765713654,0.47784541,84.3,84.257,0.49357014]
[1771765715648,0.47784541,84.3,84.259,0.49357014]
[1771765716051,0.47784541,84.319,84.263,0.49357014]
[1771765717578,0.47784541,84.317,84.265,0.49357014]
[1771765719574,0.4649466,84.311,84.267,0.46667734]
[1771765720479,41.51247745,84.312,84.267,0.46667734]
[1771765720480,0.4649466,84.303,84.267,0.46667734]
[1771765721370,0.4649466,84.303,84.26,11.867938]